[Event "44th Chess Olympiad Women 2022"]
[Site "Chennai"]
[Date "2022.08.03"]
[Round "6.3"]
[White "Assaubayeva, Bibisara"]
[Black "Beydullayeva, Govhar"]
[Result "1/2-1/2"]
[WhiteElo "2436"]
[BlackElo "2390"]
[Annotator "TA"]
[PlyCount "138"]
[EventDate "2022.??.??"]
[TimeControl "60"]

{[%evp 11,138,27,27,-11,-11,-31,-3,-20,-18,-25,-24,-45,-35,-45,-37,-49,-38,-41,
-49,-79,-79,-79,-80,-87,-80,-75,-75,-73,-75,-85,-82,-86,-87,-87,-87,-90,-96,
-95,-86,-102,-40,-41,-33,-40,-30,-95,-95,-106,-106,-103,-104,-109,-107,-103,
-83,-115,-100,-103,-96,-95,-101,-115,-93,-142,-117,-129,0,-120,-127,-140,-138,
-138,-138,-194,-123,-110,0,-102,-87,-128,-131,-213,-204,-216,-216,-199,0,-186,
0,0,0,0,0,0,0,0,0,0,0,0,0,0,0,-15,0,-23,0,0,0,0,0,0,0,0,0,0,0,0,0,0,0,0,0,0,0,
0,0,0,0]} 1. d4 {[%emt 0:00:12]} Nf6 {[%emt 0:00:08]} 2. c4 {[%emt 0:00:17]} e6
{[%emt 0:00:10]} 3. Nc3 {[%emt 0:00:04]} Bb4 {[%emt 0:00:12]} 4. e3 {[%emt 0:
00:00]} c5 {[%emt 0:00:27]} 5. Nge2 {[%emt 0:00:07]} d5 {[%emt 0:00:15]} 6. a3
{[%emt 0:00:15]} Ba5 {[%emt 0:01:05]} 7. Ng3 {[%emt 0:14:32] E42: Nimzo-Indian:
Rubinstein: 4...c5 5 Ne2.} dxc4 {[%emt 0:13:30]} 8. Bxc4 {[%emt 0:01:48] [#]}
cxd4 $146 {[%emt 0:00:58]} ({Predecessor:} 8... Nc6 9. O-O cxd4 10. exd4 Qxd4
11. Nb5 Qxd1 12. Rxd1 O-O 13. Be3 a6 14. Nd6 Bc7 {0-1 (88) Jussupow,A (2576)
-Wirig,A (2500) Germany 2015}) 9. exd4 {[%emt 0:00:45]} Nc6 {[%emt 0:00:17]}
10. Nge2 {[%emt 0:03:04]} Bb6 {[%emt 0:06:21]} 11. Bb5 {[%emt 0:07:22]} O-O {
[%emt 0:05:01][%cal Rc6d4]} 12. Bxc6 {[%emt 0:00:09]} bxc6 {[%emt 0:00:00]} 13.
Bg5 {[%emt 0:00:13]} h6 {[%emt 0:05:04]} 14. Bh4 {[%emt 0:00:32]} c5 {[%emt 0:
00:00]} 15. Bxf6 {[%emt 0:11:27]} Qxf6 {[%emt 0:00:25]} 16. dxc5 {[%emt 0:00:
00]} Bxc5 {[%emt 0:01:54]} 17. Ne4 {[%emt 0:00:05][%csl Yc5,Yf6]} Qe5 {[%emt 0:
03:21]} 18. Nxc5 {[%emt 0:00:06]} Qxc5 {[%emt 0:00:01]} 19. O-O {[%emt 0:07:16]
} Ba6 {[%emt 0:02:25]} 20. Re1 {[%emt 0:00:31]} Rfd8 {[%emt 0:00:00] Prevents
Qd4.} 21. Qa4 {[%emt 0:00:09]} Qb6 {[%emt 0:03:25]} 22. Qb4 {[%emt 0:03:18]
Inhibits Rd2.} Qxb4 {[%emt 0:06:24]} 23. axb4 {[%emt 0:00:13]} Bc4 {[%emt 0:03:
33]} 24. Nc3 {[%emt 0:10:47]} Rd2 {[%emt 0:03:04]} 25. Re4 {[%emt 0:00:42]} Bd5
{[%emt 0:03:24]} (25... Rc8 $1 $17 26. Nd1 (26. Rxa7 Rxb2 27. Ra1 Rxb4 $17)
26... Bd5) 26. Re2 $15 {[%emt 0:18:51]} Rxe2 {[%emt 0:00:05]} 27. Nxe2 {
[%emt 0:00:06] Endgame KRB-KRN} Rb8 {[%emt 0:00:07]} 28. Rxa7 {[%emt 0:01:18]}
(28. Nc3 $1 $11) 28... Rxb4 $17 {[%emt 0:00:04]} 29. h3 {[%emt 0:04:53]} Rxb2 {
[%emt 0:00:50]} 30. Nf4 {[%emt 0:00:12]} Bb7 {[%emt 0:00:00]} 31. Nd3 {[%emt 0:
00:24]} Rb1+ {[%emt 0:00:37]} 32. Kh2 {[%emt 0:00:01]} g5 {[%emt 0:01:18]} 33.
Ra4 {[%emt 0:02:38]} Bd5 {[%emt 0:01:44]} 34. h4 {[%emt 0:00:00]} Kg7 {[%emt 0:
03:35]} 35. hxg5 {[%emt 0:00:35]} hxg5 {[%emt 0:00:01]} 36. Ne5 {[%emt 0:00:49]
} Re1 {[%emt 0:01:39]} 37. Ng4 {[%emt 0:04:22]} (37. Nd7 $142) 37... Re2 {
[%emt 0:03:19]} 38. Kg1 {[%emt 0:00:06]} Re1+ {[%emt 0:00:36]} 39. Kh2 {
[%emt 0:00:01]} f5 {[%emt 0:00:59][%cal Yf7f5,Yf5f4]} 40. Ne3 {[%emt 0:00:14]}
Be4 {[%emt 0:00:54]} 41. Ra3 {[%emt 0:35:43]} f4 {[%emt 0:00:00]} 42. Nc4 {
[%emt 0:00:15]} (42. Ra7+ $17 Kg6 43. Nc4) 42... Bd5 {[%emt 0:00:00]} (42... g4
$1 $19 {aiming for ...Re2.} 43. Ra4 Kf6) 43. Nb6 {[%emt 0:00:56]} Be4 {[%emt 0:
12:01]} (43... Kf6 $17 {And now ...g4 would win.} 44. f3 Bc6) 44. Ra5 {[%emt 0:
02:12]} (44. Nc4 $1 $11) 44... Bf5 {[%emt 0:01:36]} 45. Ra7+ {[%emt 0:00:00]}
Kg6 {[%emt 0:00:00]} 46. Nd7 {[%emt 0:00:00] [#]} (46. Nc8 $17 {keeps fighting.
}) 46... g4 $1 $19 {[%emt 0:00:00] Threatens to win with ... Re2.} 47. Ra4 {
[%emt 0:00:00]} Kg5 {[%emt 0:00:00] ...Re2 is the strong threat.} 48. Ra8 {
[%emt 0:00:00]} Kg6 {[%emt 0:00:00]} 49. Ra4 $1 {[%emt 0:00:00] [#]} e5 $2 {
[%emt 0:00:00]} (49... Rd1 $1 $19 50. Nb6 Kg5) 50. Nxe5+ $1 $11 {[%emt 0:00:00]
Remove Defender} Rxe5 {[%emt 0:00:00]} 51. Rxf4 {[%emt 0:00:00] KRB-KR} Kg5 {
[%emt 0:00:00]} 52. Kg3 {[%emt 0:00:00]} Re1 {[%emt 0:00:00]} 53. Rc4 {[%emt 0:
00:00]} Ra1 {[%emt 0:00:00]} 54. Rc3 {[%emt 0:00:00]} Ra5 {[%emt 0:00:00]} 55.
Rb3 {[%emt 0:00:00]} Be4 {[%emt 0:00:00]} 56. Re3 {[%emt 0:00:00]} Kf5 {
[%emt 0:00:00]} 57. Rc3 {[%emt 0:00:00]} Rd5 {[%emt 0:00:00]} 58. f3 {[%emt 0:
00:00]} gxf3 {[%emt 0:00:00]} 59. gxf3 {[%emt 0:00:00] The position is equal.}
Bd3 {[%emt 0:00:00]} 60. Rc8 {[%emt 0:00:00]} Kg5 {[%emt 0:00:00]} 61. Rg8+ {
[%emt 0:00:00]} Bg6 {[%emt 0:00:00]} 62. Rg7 {[%emt 0:00:00]} Rd3 {[%emt 0:00:
00]} 63. Rg8 {[%emt 0:00:00]} Ra3 {[%emt 0:00:00]} 64. Rg7 {[%emt 0:00:00]} Kf6
{[%emt 0:00:00]} 65. Rg8 {[%emt 0:00:00]} Kf7 {[%emt 0:00:00]} 66. Rb8 {
[%emt 0:00:00]} Be4 {[%emt 0:00:00]} 67. Rb4 {[%emt 0:00:00]} Rxf3+ {[%emt 0:
00:00]} 68. Kg4 {[%emt 0:00:00]} Bd5 {[%emt 0:00:00]} 69. Rf4+ {[%emt 0:00:00]}
Rxf4+ {[%emt 0:00:00] Weighted Error Value: White=0.14 (very precise) /Black=0.
19 (very precise)} 1/2-1/2

[Event "44th Chess Olympiad Women 2022"]
[Site "Chennai"]
[Date "2022.08.03"]
[Round "6.3"]
[White "Mammadova, Gulnar"]
[Black "Balabayeva, Xeniya"]
[Result "1-0"]
[WhiteElo "2380"]
[BlackElo "2198"]
[Annotator "TA"]
[PlyCount "115"]
[EventDate "2022.??.??"]
[TimeControl "60"]

{[%evp 21,115,0,0,-14,0,0,37,34,16,-24,0,-62,-52,-56,-14,-11,-22,-76,-74,-152,
-139,-208,-206,-202,-210,-205,-184,-200,-208,-210,-186,-206,-185,-185,-169,
-309,-299,-317,-328,-320,-262,-258,-250,-287,-306,-325,-316,-315,-306,-297,
-278,-266,-235,-231,-169,-152,-127,-175,-88,-194,-186,-337,-58,-69,0,0,0,0,0,0,
0,0,1036,1024,985,984,984,909,1573,1444,1212,842,1145,489,480,420,374,380,
29984,29985,29985,29986,29986,29987,29987,29988]} 1. e4 {[%emt 0:00:03]} e6 {
[%emt 0:00:10]} 2. d4 {[%emt 0:00:10]} d5 {[%emt 0:00:13]} 3. Nd2 {[%emt 0:00:
00]} Nf6 {[%emt 0:03:08]} 4. e5 {[%emt 0:00:11]} Nfd7 {[%emt 0:00:09]} 5. Ngf3
{[%emt 0:01:08]} c5 {[%emt 0:00:50]} 6. c3 {[%emt 0:00:00]} Nc6 {[%emt 0:05:00]
} 7. Bd3 {[%emt 0:01:39]} Qb6 {[%emt 0:00:49]} 8. O-O {[%emt 0:03:18]} cxd4 {
[%emt 0:01:38]} 9. cxd4 {[%emt 0:05:28]} Nxd4 {[%emt 0:01:00]} 10. Nxd4 {
[%emt 0:00:09]} Qxd4 {[%emt 0:00:05]} 11. Nf3 {[%emt 0:00:05]} Qb6 {[%emt 0:00:
00]} 12. Qe2 {[%emt 0:01:33] C06: French Tarrasch: 3...Nf6 4 e5 Nfd7 5 Bd3
main lines.} h6 {[%emt 0:07:31]} 13. a3 {[%emt 0:10:42]} a5 {[%emt 0:14:30]}
14. Bb5 {[%emt 0:05:58] [#] White is slightly better.} Bc5 $146 {[%emt 0:05:55]
} ({Predecessor:} 14... a4 15. Be3 Bc5 16. Bxc5 Qxc5 17. Rac1 Qb6 18. Rfd1 O-O
19. Rxc8 Rfxc8 20. Bxd7 Rc4 {0-1 (80) Kaehmann,J (2238)-Henneberger,S (2119)
Germany 2011}) 15. Rb1 {[%emt 0:07:08]} a4 {[%emt 0:06:33]} 16. b4 {[%emt 0:00:
00]} (16. Bd2 $11) 16... axb3 $1 $15 {[%emt 0:00:13]} 17. Rxb3 {[%emt 0:00:08]}
Qa7 {[%emt 0:03:30]} 18. Nh4 $1 {[%emt 0:09:07][%cal Yh4f5]} b6 $1 {[%emt 0:00:
00]} 19. Rg3 {[%emt 0:13:18]} (19. Qh5 $1 $11 {keeps the balance.}) 19... g5
$17 {[%emt 0:06:19][%cal Yg7g5,Yg5h4]} 20. Nf3 {[%emt 0:06:20]} ({Better is} 
20. Nf5) 20... Ba6 $1 {[%emt 0:00:43]} 21. h4 {[%emt 0:02:04]} (21. Rg4 $17
Bxb5 22. Qxb5) 21... gxh4 {[%emt 0:06:18]} 22. Rg4 {[%emt 0:04:22]} Bxb5 {
[%emt 0:01:33]} 23. Qxb5 {[%emt 0:00:02]} Qa6 {[%emt 0:02:00]} (23... Bxa3 24.
Rxh4 Qa6 25. Qb1 $17) 24. Qb3 {[%emt 0:01:24]} h3 {[%emt 0:01:54]} 25. gxh3 {
[%emt 0:00:53]} O-O-O {[%emt 0:01:19][%cal Ye8c8,Yc8d8,Yd8c7]} 26. Be3 {
[%emt 0:05:34]} Rdg8 {[%emt 0:03:47]} (26... Qxa3 27. Qxa3 Bxa3 28. Ra4 $17)
27. Rc1 {[%emt 0:03:52]} Kd8 {[%emt 0:04:12] Strongly threatening ... Rxg4+.}
28. Bxc5 {[%emt 0:05:07]} (28. Rxg8+ $142 Rxg8+ 29. Kh2) 28... bxc5 $19 {
[%emt 0:00:44]} (28... Nxc5 29. Qb4 $17) 29. Qe3 {[%emt 0:00:48]} Rxg4+ {
[%emt 0:02:18]} 30. hxg4 {[%emt 0:00:01]} Qa4 {[%emt 0:00:39]} 31. Nh2 {
[%emt 0:00:26]} Qa5 {[%emt 0:06:09]} 32. Kg2 {[%emt 0:02:08]} Kc7 {[%emt 0:00:
00]} 33. Rb1 {[%emt 0:01:55]} d4 {[%emt 0:00:42]} 34. Qf4 {[%emt 0:03:27]} Qxa3
{[%emt 0:00:44]} (34... Qa8+ $2 35. Nf3 $19) 35. Nf3 {[%emt 0:00:18]} Qa8 {
[%emt 0:00:40]} (35... Qd3 $2 36. Ra1 Kb8 37. Rh1 $19) 36. Rc1 {[%emt 0:01:09]}
Kd8 {[%emt 0:00:23]} 37. Kg3 {[%emt 0:00:57]} Qd5 {[%emt 0:00:45][%cal Yf7f5]}
38. Ra1 {[%emt 0:00:24]} Qb7 {[%emt 0:00:35] Prevents Ra6.} 39. Nd2 {[%emt 0:
00:00] [#]} Ke7 {[%emt 0:00:25]} (39... Rf8 $1 $19 {...Kc7 is the strong
threat.} 40. Qxh6 Kc7) 40. Ne4 {[%emt 0:00:21] [#]} (40. f3 $17) 40... Qb8 $1 {
[%emt 0:00:40]} 41. Nd6 $2 {[%emt 0:33:29]} (41. f3) 41... Rf8 $2 {[%emt 0:00:
00]} (41... Nxe5 42. Qxe5 f6 43. Qf4 $11) (41... f6 $19 42. Ne4 Qxe5 43. Qxe5
fxe5) 42. Kg2 {[%emt 0:00:00]} f6 {[%emt 0:00:00]} ({Black should play} 42...
d3 $1 $15 43. Qxh6 Nxe5) 43. Qxh6 $11 {[%emt 0:00:00] And now Qh7+ would win.}
Nxe5 {[%emt 0:00:00]} 44. Ra6 {[%emt 0:00:00]} Rf7 {[%emt 0:00:00]} 45. g5 $36
{[%emt 0:00:00][%cal Yg4g5,Yg5g6,Yg6f7] White is more active.} Kd7 {[%emt 0:00:
00][%cal Yf6g5] Hoping for ...fxg5!} 46. Ne4 {[%emt 0:00:00]} Nd3 $2 {[%emt 0:
00:34]} (46... Qb7 $11 47. f3 Kc7 48. Rxe6 Qb2+ 49. Kg3 Qc1 50. Rxe5 fxe5 51.
Qd6+ Kc8 52. Qc6+ Kd8 53. Qd6+ Kc8 54. Qc6+ Rc7 55. Nd6+ Kb8 56. Qb6+ Ka8 57.
Qxc7 Qxg5+ 58. Kh3 Qh6+ 59. Kg4 (59. Kg2 Qg5+ 60. Kh3 Qh6+ 61. Kg4 Qg6+ 62. Kh4
Qh6+ 63. Kg4 Qg6+ 64. Kh4 Qh6+ 65. Kg4 $11) 59... Qg6+ 60. Kh4 (60. Kh3 Qh6+
61. Kg4 Qg6+ 62. Kh4 Qh6+ 63. Kg4 $11) 60... Qh6+ 61. Kg4 (61. Kg3 Qg5+ 62. Kh3
Qh6+ 63. Kg4 Qg6+ 64. Kh4 Qh6+ 65. Kg4 $11) 61... Qg6+ 62. Kh4 (62. Kh3 Qh6+
63. Kg4 $11) 62... Qh6+ 63. Kg4 (63. Kg3 Qg5+ 64. Kh3 Qh6+ 65. Kg4 $11)) 47. g6
$18 {[%emt 0:00:00]} Qb7 {[%emt 0:00:50]} 48. Ra7 {[%emt 0:00:00] Promotion} ({
Inferior is} 48. gxf7 Qxe4+ 49. Kh2 Qe5+ 50. Kg2 Qe4+ 51. Kh2 Qe5+ 52. Kg2 Qe4+
$11) 48... Qxa7 {[%emt 0:00:42]} 49. gxf7 {[%emt 0:00:00] Endgame KQN-KQN} Qb7
{[%emt 0:00:40]} 50. f3 {[%emt 0:02:43]} ({And not} 50. f8=Q Qxe4+ 51. f3 Qe2+
52. Kh3 Qxf3+ 53. Kh2 Qf2+ 54. Kh3 Qf3+ 55. Kh2 Qf2+ 56. Kh3 Qf3+ $11) 50...
Qb2+ {[%emt 0:00:39]} 51. Kg3 {[%emt 0:00:00]} Qb1 {[%emt 0:01:18]} 52. Qxf6 {
[%emt 0:00:36]} (52. Nxf6+ $142 Kc6 53. f8=Q Qe1+ 54. Kh2) 52... Qg1+ {[%emt 0:
00:45]} 53. Kh4 {[%emt 0:00:14]} Qh2+ {[%emt 0:00:36]} 54. Kg5 {[%emt 0:00:14]
Dancing on a razor blade.} Qg2+ $2 {[%emt 0:00:27]} (54... Qg1+ $18 55. Kh6
Qh2+ 56. Kg7 Nf4) 55. Kh6 {[%emt 0:00:00] White mates.} Qh2+ {[%emt 0:00:33]}
56. Kg7 {[%emt 0:00:07]} Nf4 {[%emt 0:00:00]} 57. Qg5 {[%emt 0:01:17]} e5 {
[%emt 0:00:39]} 58. Nxc5+ {[%emt 0:00:08] Never resign too early! Weighted
Error Value: White=0.28 (precise) /Black=0.34} 1-0

[Event "44th Chess Olympiad Women 2022"]
[Site "Chennai"]
[Date "2022.08.03"]
[Round "6.3"]
[White "Mammadzada, Gunay"]
[Black "Abdumalik, Zhansaya"]
[Result "1/2-1/2"]
[WhiteElo "2455"]
[BlackElo "2495"]
[Annotator "TA"]
[PlyCount "50"]
[EventDate "2022.??.??"]
[TimeControl "60"]

{[%evp 16,50,37,39,36,51,39,44,50,45,35,45,30,-12,-12,-14,-8,-8,-18,-1,122,28,
559,277,583,580,716,327,337,333,467,54,575,42,134,148,148]} 1. d4 {[%emt 0:00:
00]} Nf6 {[%emt 0:01:07]} 2. c4 {[%emt 0:00:04]} e6 {[%emt 0:00:36][%cal Ye7e6,
Ye6d5,Yd5d4]} 3. g3 {[%emt 0:00:19]} d5 {[%emt 0:01:18]} 4. Bg2 {[%emt 0:00:56]
} c5 {[%emt 0:00:37]} 5. cxd5 {[%emt 0:02:13]} exd5 {[%emt 0:00:00]} 6. Nf3 {
[%emt 0:02:44]} Nc6 {[%emt 0:00:17]} 7. Nc3 {[%emt 0:03:15]} cxd4 {[%emt 0:02:
47] is cutting edge theory.} 8. Nxd4 {[%emt 0:02:05]} Bc5 {[%emt 0:00:00]} 9.
Nb3 {[%emt 0:01:53][%csl Yc5,Yd5]} Bb6 {[%emt 0:00:44] D33: Tarrasch Defence:
6 g3 sidelines.} 10. O-O {[%emt 0:03:33]} ({Don't play} 10. Bxd5 Nb4 11. Bf3
Qxd1+ 12. Kxd1 O-O $11) 10... d4 {[%emt 0:01:50]} 11. Na4 {[%emt 0:01:34]} O-O
{[%emt 0:00:59] White is slightly better.} 12. Bg5 {[%emt 0:14:56]} Re8 {
[%emt 0:01:53]} 13. Nxb6 {[%emt 0:12:33]} axb6 {[%emt 0:00:00]} 14. Bxc6 {
[%emt 0:05:11]} (14. e3 {is more complex.} dxe3 15. Bxe3 Bd7 16. Re1) 14...
bxc6 {[%emt 0:00:10]} 15. Qxd4 {[%emt 0:00:07]} (15. Bxf6 {is interesting.}
Qxf6 16. Qxd4 Rxe2 17. Rfe1) 15... Qxd4 {[%emt 0:04:46]} 16. Nxd4 {[%emt 0:00:
07]} c5 {[%emt 0:00:09]} 17. Nb5 {[%emt 0:10:49] [#] And now Bxf6 would win.}
Re4 $146 {[%emt 0:03:04]} (17... Rxe2 $11 18. Rfe1 {[#]} Rxa2 $1) ({
Predecessor:} 17... Rxe2 18. Rfe1 Rxe1+ 19. Rxe1 Bh3 20. Bxf6 gxf6 21. Nc3 b5
22. a3 b4 23. axb4 cxb4 {½-½ (56) Petrosyan,M (2628)-Wagner,D (2581) Chess.
com INT 2021}) 18. e3 (18. Bxf6 $16 {[%cal Yf1d1] Rfd1! is the strong threat.}
gxf6 19. Rfd1) 18... Rxe3 $2 {[%emt 0:00:31]} 19. Rfd1 {[%emt 0:02:59]} (19.
Bxe3 $142 Bg4 20. Bf4) 19... Re2 $2 {[%emt 0:07:54]} (19... Re8 20. Bxf6 gxf6)
20. Nc7 $18 {[%emt 0:00:44] Rd8+ would kill now.} Bg4 {[%emt 0:02:36]} 21. Bxf6
{[%emt 0:03:12]} (21. Nxa8 $142 Re8 22. Nc7) 21... Rc8 {[%emt 0:00:02]} 22. Nd5
{[%emt 0:00:05]} gxf6 {[%emt 0:10:42]} (22... Rb8 {was necessary.} 23. Bc3 f6)
23. Nxb6 $2 {[%emt 0:02:44]} (23. Nxf6+ $18 Kf8 24. Nxg4) 23... Kg7 $2 {
[%emt 0:00:45]} 24. Nc4 $2 {[%emt 0:08:43]} (24. Nxc8 $18 Bxc8 25. b3) 24...
Rb8 {[%emt 0:02:33]} (24... Be6 $1 $14 25. Rdc1 Bxc4 26. Rxc4 Rxb2) 25. Rdc1
$16 {[%emt 0:00:39]} Be6 {[%emt 0:00:47] Weighted Error Value: White=1.12/
Black=1.57} 1/2-1/2

[Event "44th Chess Olympiad Women 2022"]
[Site "Chennai"]
[Date "2022.08.03"]
[Round "6.3"]
[White "Nakhbayeva, Guliskhan"]
[Black "Fataliyeva, Ulviyya"]
[Result "0-1"]
[WhiteElo "2329"]
[BlackElo "2372"]
[Annotator "TA"]
[PlyCount "74"]
[EventDate "2022.??.??"]
[TimeControl "60"]

{[%evp 9,74,24,27,26,34,37,46,43,43,38,31,26,101,50,157,158,154,148,166,72,67,
72,112,111,125,107,181,75,123,9,9,9,70,51,83,13,16,0,0,0,0,-23,-10,-191,-124,
-275,-208,-162,0,-264,-274,-270,0,-820,-823,-793,-732,-740,-315,-286,-298,
-29995,-29996,-29996,-29997,-29997,-29998]} 1. d4 {[%emt 0:00:04]} d5 {[%emt 0:
00:00]} 2. c4 {[%emt 0:00:07]} e6 {[%emt 0:00:04]} 3. Nc3 {[%emt 0:00:05]} a6 {
[%emt 0:00:04]} 4. cxd5 {[%emt 0:00:09]} exd5 {[%emt 0:00:04]} 5. Qb3 {[%emt 0:
00:00]} Nf6 {[%emt 0:00:06]} 6. Bg5 {[%emt 0:00:12] D31: Queen's Gambit
Declined: Semi-Slav without ...Nf6 (+ Marshall Gambit and Noteboom) and
Exchange Variation lines without ...Nf6.} c5 {[%emt 0:00:06]} 7. Bxf6 {[%emt 0:
00:00]} gxf6 {[%emt 0:00:04]} 8. Nf3 {[%emt 0:01:59] White is slightly better.}
Nc6 {[%emt 0:00:35] [#]} 9. e3 $146 {[%emt 0:04:16]} (9. Qxd5 Qb6 10. Qe4+ Be6
$11) ({Predecessor:} 9. Rd1 Be6 10. e3 c4 11. Qc2 b5 12. Be2 f5 13. O-O Qf6 14.
Ne5 Nxe5 15. dxe5 Qxe5 16. Nxd5 {½-½ (34) Yilmaz,M (2630)-Grandelius,N (2663)
Chess.com INT 2020}) 9... Be6 {[%emt 0:00:10]} 10. Be2 {[%emt 0:00:24]} (10.
Qxb7 Na5 11. Bb5+ axb5 12. Qxb5+ Qd7 13. dxc5 Qxb5 14. Nxb5 Rb8 $17) 10... Bd6
{[%emt 0:10:34]} (10... b5 $11 {keeps the balance.}) 11. O-O {[%emt 0:03:23]} (
11. Qxb7 $2 Na5 12. Qxa8 Qxa8 $19) (11. Nxd5 c4 12. Nxf6+ (12. Bxc4 Na5 $17)
12... Qxf6 13. Qxb7 Rc8 $17) (11. dxc5 $16 Bxc5 12. O-O (12. Qxb7 $2 Na5 $19))
11... O-O {[%emt 0:04:42]} (11... c4 $1 $14 12. Qd1 (12. Qxb7 $2 Na5 $19) 12...
Bb4) 12. dxc5 $16 {[%emt 0:06:31]} (12. Qxb7 $2 Na5 13. Qxa8 Qxa8 $19) 12...
Bxc5 {[%emt 0:04:41]} 13. Rad1 {[%emt 0:08:11]} (13. Qxb7 $2 Na5 14. Qxa6 Rxa6
15. Bxa6 Nc4 16. Bxc4 dxc4 $19) 13... Ne7 {[%emt 0:14:52]} 14. e4 {[%emt 0:00:
00]} (14. Qxb7 $18 Qa5 15. Qb3) 14... d4 {[%emt 0:04:05]} 15. Bc4 {[%emt 0:00:
00]} (15. Qxb7 $2 Ra7 16. Nxd4 Rxb7 $19) 15... Bg4 {[%emt 0:08:53]} 16. Nd5 {
[%emt 0:01:34]} Nc6 {[%emt 0:02:53]} 17. Rc1 {[%emt 0:00:28][%cal Yc4a6]} (17.
Qxb7 Na5 18. Qc7 Qxc7 19. Nxc7 Rac8 $17) 17... Rc8 {[%emt 0:14:35]} (17... Kh8
$16) 18. Nd2 {[%emt 0:18:40] Pair of Knights!} (18. Be2 $18 {is more deadly.}
Bd6 19. Qxb7 Bxf3 20. Bxf3 (20. gxf3 Ne5 $16)) 18... Ne5 {[%emt 0:10:11]} 19.
Qg3 {[%emt 0:04:20]} ({White should try} 19. Qxb7 $16 {Strongly threatening
Qb3.} Nxc4 20. Nxc4 (20. Rxc4 Be2 $16)) 19... Kh8 $11 {[%emt 0:01:34]} 20. Qh4
{[%emt 0:03:47]} Rc6 {[%emt 0:03:06]} ({Better is} 20... Rg8 $1 $11) 21. b4 $14
{[%emt 0:06:00]} Be7 {[%emt 0:01:45]} 22. Nxe7 {[%emt 0:03:37]} (22. f4 $16
Nxc4 23. Rxc4 (23. Nxc4 Be6 $11) (23. Nxe7 Qxe7 24. Rxc4 Rxc4 $17) 23... Rxc4
24. Nxc4 (24. Nxe7 Qxe7 25. Nxc4 Be2 $17)) 22... Qxe7 $11 {[%emt 0:00:14]} 23.
Bd5 {[%emt 0:00:12]} Rxc1 {[%emt 0:01:27]} 24. Rxc1 {[%emt 0:00:00]} Rg8 {
[%emt 0:00:35]} 25. Kh1 {[%emt 0:07:54]} Nd3 {[%emt 0:05:44]} 26. Rc4 {[%emt 0:
00:00] [#]} (26. Rb1 $1 $11) 26... b5 {[%emt 0:02:05]} (26... Bh3 $1 $19 {
[%cal Rh3g2]} 27. g3 (27. gxh3 $2 f5 $19) 27... Be6 28. Bxe6 (28. Rxd4 Nxf2+
29. Kg2 Ng4 $15) 28... fxe6) 27. Rc6 $2 {[%emt 0:02:52]} (27. Rc2 $17) 27...
Rg6 $1 $19 {[%emt 0:02:37][%cal Yg4h3] ...Bh3! is the strong threat.} 28. h3 {
[%emt 0:01:55]} (28. Rxa6 $2 Qc7 29. h3 Qc1+ 30. Kh2 Bxh3 $19) 28... Kg7 $2 {
[%emt 0:03:42]} 29. Kg1 $2 {[%emt 0:00:31]} (29. hxg4 $2 Rh6 30. Nf3 Rxh4+ 31.
Nxh4 Qxb4 32. Nf5+ Kg6 33. Nh4+ Kh6 $19) (29. Rxa6 $2 Nxb4 30. Kg1 Bd1 31. Bxf7
Nxa6 $19) (29. a3 $11 {and White stays safe.}) 29... Bd7 {[%emt 0:01:01]} 30.
Rxa6 {[%emt 0:02:43]} Qxb4 $2 {[%emt 0:03:29]} (30... Nxb4 $19 31. Ra7 Nxd5 32.
exd5 Qe1+ 33. Kh2 (33. Nf1 $2 d3 $19) 33... Qe5+ 34. g3 Bxh3 $1 35. Rxf7+ (35.
Qxh3 $2 Rh6 $19) 35... Kxf7 36. Qxh7+ Rg7 37. Qxh3 Qxd5) 31. Nf3 $2 {[%emt 0:
00:35]} (31. Bxf7 $11 Kxf7 32. Qxh7+ Rg7 33. Qh6) 31... Qb1+ {[%emt 0:00:34]} (
31... Qb2 32. Bxf7 (32. Kh2 $2 Nf4 $19) 32... Kxf7 33. Ra7 $11) 32. Kh2 {
[%emt 0:00:06]} Qf1 {[%emt 0:00:19][%csl Gf1,Yf2,Yg2][%cal Rg6g2]} 33. g4 {
[%emt 0:00:49]} Nxf2 {[%emt 0:01:01]} (33... Rh6 $142 34. Qxh6+ Kxh6 35. Rxf6+
Kg7 36. Rxf7+ Kg6 37. Nh4+ Kh6) 34. e5 {[%emt 0:00:00] [#]} fxe5 {[%emt 0:00:
54] The board is on fire.} ({Weaker is} 34... Be6 35. exf6+ (35. Bxe6 $2 Qh1+
36. Kg3 Ne4+ 37. Kf4 Ng5 $19) 35... Rxf6 36. Qg5+ (36. Nxd4 $2 Nxg4+ 37. hxg4
Rf2+ 38. Qxf2 Qxf2+ 39. Bg2 Qxd4 $19) 36... Rg6 37. Qe5+ f6 38. Qc7+ (38. Qxe6
Qxh3+ 39. Kg1 Rxg4+) (38. Ra7+ Kh8 $11) 38... Kh8 39. Ra8+ (39. Rxe6 Qxh3+ 40.
Kg1 Rxg4+) 39... Bg8 40. Rxg8+ Rxg8 41. Bxg8 Kxg8 42. Qb8+ Kg7 43. Qc7+ Kh6 44.
g5+ Kg6 45. Qc8 $11) 35. Qe7 $2 {[%emt 0:00:39]} (35. Rxg6+ $19 hxg6 36. g5 (
36. Nxe5 $2 Qe2 $19) 36... Qxh3+ 37. Qxh3 Nxh3 38. Nxe5) 35... Qxh3+ {[%emt 0:
00:20] Black mates.} 36. Kg1 {[%emt 0:00:00]} Rxg4+ {[%emt 0:00:16]} ({Worse is
} 36... Qg3+ 37. Kf1 Nxg4 38. Rxg6+ hxg6 39. Qxf7+ Kh6 40. Qf8+ Kh5 41. Qh8+
Nh6 42. Qxe5+ Qxe5 43. Nxe5 $17) 37. Kxf2 {[%emt 0:00:00]} Rg2+ {[%emt 0:00:09]
What a bad dream for White. Weighted Error Value: White=0.73/Black=0.41} 0-1